Cogmind - Beta 15 @@@ ROGUE MODE // 2025.06.28 @ 16:52:16 Player: Loumardes Result: Destroyed by G-50 Soldier with Heavy Laser Performance ------------- Evolutions (5) 2500 Regions Visited (9) 1800 Robots Destroyed (171) 855 Value Destroyed (6704) 6704 Prototype IDs (37) 740 Alien Tech Used (0) 0 Bonus (2611) 2611 TOTAL SCORE: 15210 Bonus ------- High Alert Combat Kills 1819 Follower Combat Kills 189 Registered with UFD 300 Met Optimus in HQ 500 Friendly Fire -197 Cogmind --------- Core Integrity 0/1000 Matter 290/300 Energy 177/180 System Corruption 49% Temperature Cool (11) Movement Treading (170) Location -5/Upper Caves Parts ------- > --- POWER (2) -------- Meta Core > --- PROPULSION (3+1) - Armored Medium Treads > --- UTILITY (9+1) ---- (None) > --- WEAPON (3+1) ----- (None) > --- INVENTORY (5) ---- Experimental Signal Interpreter Launcher Guidance Computer Hacking Suite Mapping Drone Bay (3/3) Peak State ------------ > --- POWER ------------ Enhanced Fission Core Enhanced Fission Core > --- PROPULSION ------- Medium Armored Exoskeleton > --- UTILITY ---------- Advanced Heat Sink Advanced Cooling System Medium Storage Unit Improved Matter Compressor Improved Matter Compressor Improved Weapon Cycler Improved Utility Shielding Improved Medium Armor Plating Improved Shield Generator > --- WEAPON ----------- Improved Heavy Laser Neutron Cannon Neutron Cannon > --- INVENTORY -------- Neutrino Core Meta Core Armored Medium Treads Experimental Signal Interpreter Improved Transmission Jammer Authchip [Armor] Mapping Drone Bay Heavy Ion Cannon Heavy Ion Cannon Heavy Shock Bomb Launcher [Rating: 101] Favorites ----------- Power Ion Engine Engine Ion Engine Power Core Enhanced Fission Core Reactor Cold Fusion Reactor Propulsion Light Treads Treads Light Treads Leg Medium Armored Exoskeleton Wheel Compact Wheel Hover Unit Backup Propulsion I Utility Huge Storage Unit Device Seismic Detector Storage Huge Storage Unit Processor Target Analyzer Hackware System Shield Protection Improved Utility Shielding Weapon Advanced Beam Cannon Energy Gun Improved Heavy Laser Energy Cannon Advanced Beam Cannon Ballistic Gun Subdweller Machine Gun Ballistic Cannon Magnetic Acceleration Cannon Launcher Subdweller Shrapnel Launcher Special Weapon Junk Cannon Slashing Weapon Chainsword Build | -11 -10 -10 -10 -9 -9 -6 -5 -5 -5 ------- Run | Yrd Mat Min Sub Rec Scr Fac Fac Upp Upp Slots Evolved 10 | . . . . . . 8 2 . . Power 1 | . . . . . . 1 . . . Propulsion 1 | . . . . . . 1 . . . Utility 7 | . . . . . . 5 2 . . Weapon 1 | . . . . . . 1 . . . Parts Attached 115 | 7 8 . 6 1 4 25 60 2 2 Power 13 | 1 . . 2 . 1 2 5 1 1 Engine 8 | 1 . . 2 . 1 1 2 1 . Core 4 | . . . . . . . 3 . 1 Reactor 1 | . . . . . . 1 . . . Propulsion 22 | 2 1 . 2 1 . 5 11 . . Treads 7 | 2 . . 1 1 . 1 2 . . Leg 6 | . . . . . . 1 5 . . Wheel 8 | . 1 . 1 . . 3 3 . . Hover 1 | . . . . . . . 1 . . Flight . | . . . . . . . . . . Utility 48 | 2 4 . 1 . 1 12 27 1 . Device 26 | 1 2 . 1 . 1 6 15 . . Storage 7 | 1 2 . . . . . 4 . . Processor 3 | . . . . . . . 3 . . Hackware 2 | . . . . . . 1 1 . . Protection 10 | . . . . . . 5 4 1 . Artifact . | . . . . . . . . . . Weapon 32 | 2 3 . 1 . 2 6 17 . 1 Energy Gun 7 | 1 . . . . . 1 5 . . Energy Cannon 11 | . 3 . . . 1 2 5 . . Ballistic Gun 3 | 1 . . . . . 1 . . 1 Ballistic Cannon 6 | . . . . . . 1 5 . . Launcher 3 | . . . 1 . . 1 1 . . Special Weapon 1 | . . . . . 1 . . . . Impact Weapon . | . . . . . . . . . . Slashing Weapon 1 | . . . . . . . 1 . . Piercing Weapon . | . . . . . . . . . . Special Melee Weapon . | . . . . . . . . . . Unidentified Prototypes 11 | . 1 . 1 . 1 2 5 1 . Corrupted Parts 3 | . . . . . . . 3 . . System Corruption 11 | . . . . . . . 11 . . Parts Lost 61 | . . 2 . . . 21 23 . 15 Power 10 | . . 1 . . . 3 5 . 1 Propulsion 10 | . . . . . . 5 4 . 1 Utility 26 | . . . . . . 7 11 . 8 Weapon 15 | . . 1 . . . 6 3 . 5 Highest Loss Streak 15 | . . 2 . . . 15 6 . 6 To Critical Strikes . | . . . . . . . . . . Average Backups 17 | 1 8 13 21 23 24 22 8 9 8 Power 1 | . 1 2 3 3 1 . . . . Propulsion 2 | 1 1 2 3 3 2 1 . 1 . Utility 10 | . 3 5 9 13 15 15 4 6 5 Weapon 2 | . 1 1 3 2 1 2 2 1 . Tool/Special . | . . . . . . . . . . Unused Backups 41 | . 4 . 5 6 3 14 3 . 6 Power 4 | . . . 1 . 2 1 . . . Propulsion 2 | . 1 . . . . 1 . . . Utility 24 | . 1 . 2 3 1 10 1 . 6 Weapon 8 | . 2 . 1 3 . . 2 . . Tool/Special 3 | . . . 1 . . 2 . . . Average Slot Usage (%) 93 | . 99 90 100 100 99 95 84 77 67 Engine 10 | . 14 4 14 14 14 5 3 1 3 Core 1 | . . . . . . . 6 5 4 Treads 13 | . 18 14 18 14 21 13 1 . . Leg 1 | . . . . . . . 6 5 4 Wheel 6 | . 9 14 9 14 6 4 1 . . Device 17 | . 14 14 14 14 14 25 21 29 23 Storage 11 | . 14 14 14 14 14 5 9 5 3 Processor 1 | . . . . . . . 6 . . Protection 2 | . . . . . . 5 4 10 8 Energy Gun 1 | . . . . . . . 3 5 3 Energy Cannon 20 | . 26 28 25 28 27 9 7 11 9 Ballistic Cannon 1 | . . . . . . 4 3 . . Peak Build Rating 101 | 7 12 12 19 19 27 71 101 96 97 Average Rating 38 | 5 11 11 16 18 21 52 75 92 82 On Entrance 26 | . 7 12 11 19 18 23 3 79 96 Naked Turns 16 | . . . . . . 3 13 . . Heaviest Build 140 | 15 94 54 98 94 100 140 84 79 79 Greatest Support 62 | 40 40 16 40 16 40 62 55 50 50 Greatest Overweight (x) 8 | 1 5 3 6 5 6 8 5 1 1 Average Overweight (x) 3 | . 2 3 3 5 4 5 1 1 . Largest Inventory Capacity 25 | 8 25 20 25 25 25 25 10 10 10 Average Capacity 19 | 6 16 20 22 25 25 24 9 10 8 Most Carried 25 | 4 12 14 25 25 25 25 10 10 10 Average Carried 18 | 1 8 13 21 24 24 23 8 9 8 Final Capacity 25 | 8 20 20 25 25 25 5 10 10 5 Final Carried 25 | 4 12 13 25 25 25 5 9 9 4 Class Distribution -------------------- 55% | Mutant 14% | Scavenger-Mutant 13% | Tank 7% | Scavenger-Tank 4% | Scavenger-Gunner 4% | Gunner Dominant Class ---------------- Mutant | -10/Materials Mutant | -10/Mines Mutant | -10/Subcaves Scavenger-Mutant | -9/Recycling Mutant | -9/Scraptown Scavenger-Tank | -6/Factory Tank | -5/Factory Tank | -5/Upper Caves Tank | -5/Upper Caves Resources | -11 -10 -10 -10 -9 -9 -6 -5 -5 -5 ----------- Run | Yrd Mat Min Sub Rec Scr Fac Fac Upp Upp Matter Collected 4128 | 268 131 20 185 65 40 1351 1777 135 156 Remotely . | . . . . . . . . . . Salvage Created 7586 | 95 521 188 86 59 . 2670 3761 107 99 Parts 328 | 4 45 7 18 3 . 79 159 3 10 Haulers Intercepted 4 | . 2 . . . . 1 1 . . Recyclers Shooed 19 | . . . . . . 13 6 . . Parts Field Recycled . | . . . . . . . . . . Retrieved Matter . | . . . . . . . . . . Parts Self-Destructed 27 | . . . 11 . . . . 1 15 Prevented . | . . . . . . . . . . Kills | -11 -10 -10 -10 -9 -9 -6 -5 -5 -5 ------- Run | Yrd Mat Min Sub Rec Scr Fac Fac Upp Upp Combat Hostiles Destroyed 138 | . 17 4 8 1 . 41 61 2 4 Guns 12 | . . . . . . 8 3 1 . Cannons 88 | . 16 4 1 1 . 22 39 1 4 AOE 33 | . . . 7 . . 10 16 . . Classes Destroyed 18 | 2 5 . 2 1 . 5 3 . . Worker 3 | . . . . . . 2 1 . . Builder 5 | . . . . . . 1 4 . . Tunneler 1 | 1 . . . . . . . . . Hauler 4 | . 2 . . . . 1 1 . . Recycler 12 | 1 . . . . . 8 3 . . Mechanic 1 | . . . . . . . 1 . . Operator 2 | . 1 . . . . . 1 . . Watcher 4 | . 2 . . . . 1 1 . . Swarmer 36 | . 12 . 7 . . 8 5 . 4 Grunt 68 | . 5 4 . . . 24 33 2 . Brawler 2 | . . . . . . . 2 . . Duelist 4 | . . . . . . 2 2 . . Protector 1 | . . . . . . . 1 . . Sentry 4 | . . . . 1 . 1 2 . . Hunter 8 | . . . . . . 3 5 . . Programmer 14 | . . . . . . 3 11 . . Artisan 1 | . . . 1 . . . . . . Subdweller 2 | . . . 2 . . . . . . Decomposer 1 | . . . . . . . . . 1 Best Kill Streak 11 | 2 3 2 4 1 . 10 11 2 2 Combat Bots Only 7 | . 3 2 4 1 . 6 7 2 2 Max Kills in Single Turn 4 | 1 1 1 4 1 . 4 3 1 2 Gunslinging . | . . . . . . . . . . Exploded 4 | . . . 4 . . 4 3 . . Melee . | . . . . . . . . . . Uniques/NPCs Destroyed . | . . . . . . . . . . Combat | -11 -10 -10 -10 -9 -9 -6 -5 -5 -5 -------- Run | Yrd Mat Min Sub Rec Scr Fac Fac Upp Upp Hostile Shots Fired 1042 | . 64 20 36 . . 337 443 4 138 Missed 292 | . 13 6 13 . . 99 126 . 35 Hits 750 | . 51 14 23 . . 238 317 4 103 Melee 28 | . . . . . . 6 3 . 19 Projectile 722 | . 51 14 23 . . 232 314 4 84 Critical Strikes 40 | . 1 1 1 . . 8 25 . 4 Actively Blocked 1 | . . . . . . . 1 . . Part Disruptions 1 | . . . . . . . 1 . . Damage Taken 12570 | . 417 179 412 . . 3486 5428 76 2572 Core 1609 | . 58 12 97 . . 438 690 . 314 Absorbed by Shields 1221 | . . . . . . 452 769 . . Redirected to Shielding 179 | . . . . . . . 163 . 16 Ignored by Resistances 524 | . . . . . . 36 488 . . Regen/Repaired (Parts) 382 | . 80 . . . . 302 . . . Core Remaining (%) 60 | 100 . . . . 33 48 . . . Volleys Fired 477 | 3 43 15 59 1 . 136 202 3 15 Largest 3 | 2 2 2 2 2 . 3 3 3 2 Hottest 245 | 70 136 136 136 136 . 193 245 220 155 Shots Fired 955 | 6 83 27 77 2 . 275 453 11 21 Gun 143 | 6 . . . . . 61 71 4 1 Cannon 775 | . 83 27 74 2 . 204 358 7 20 Launcher 37 | . . . 3 . . 10 24 . . Special . | . . . . . . . . . . Kinetic 296 | 3 . . 3 . . 138 152 . . Thermal 615 | 3 83 27 74 2 . 131 263 11 21 Explosive . | . . . . . . . . . . Electromagnetic 44 | . . . . . . 6 38 . . Robot Hit Streak 14 | 6 10 7 14 8 . 13 9 5 4 Robot Miss Streak 9 | . 6 3 2 . . 9 7 1 2 Penetration Max 1 | . . . . . . . 1 . . Secondary Targets . | . . . . . . . . . . Shots Hit Robots 504 | 6 37 15 16 1 . 186 231 7 5 Core Hits 384 | 3 21 6 14 1 . 181 150 3 5 Critical Kills 3 | . 1 . . . . 1 1 . . Critical Parts Destroyed . | . . . . . . . . . . Critical Strikes 13 | . 1 . . . . 1 10 1 . Burn 2 | . . . . . . . 1 1 . Meltdown 2 | . 1 . . . . . 1 . . Destroy 1 | . . . . . . 1 . . . Blast 8 | . . . . . . . 8 . . Melee Attacks . | . . . . . . . . . . Impact . | . . . . . . . . . . Slashing . | . . . . . . . . . . Piercing . | . . . . . . . . . . Sneak Attacks . | . . . . . . . . . . Combat Hostiles . | . . . . . . . . . . Follow-up Attacks . | . . . . . . . . . . Damage Inflicted 18872 | 74 775 321 651 21 . 5958 10558 211 303 Guns 2088 | 74 . . . . . 928 980 106 . Cannons 12071 | . 775 321 228 21 . 3673 6645 105 303 Explosions 4687 | . . . 423 . . 1341 2923 . . Melee . | . . . . . . . . . . Ramming 26 | . . . . . . 16 10 . . Kinetic 6883 | 38 . . 423 . . 3451 2971 . . Thermal 8976 | 36 775 321 228 21 . 2116 4965 211 303 Explosive 429 | . . . . . . . 429 . . Electromagnetic 2558 | . . . . . . 375 2183 . . Impact . | . . . . . . . . . . Slashing . | . . . . . . . . . . Piercing . | . . . . . . . . . . Highest Corruption 49 | . . . . . . 6 33 33 49 Average Corruption 23 | . . . . . . 1 22 33 36 Corruption Purged . | . . . . . . . . . . Corruption Blocked . | . . . . . . . . . . Effects 204 | . . . . . . 8 101 44 51 Message Errors 44 | . . . . . . 3 22 10 9 Matter Fused 48 | . . . . . . 3 19 15 11 Heat Flow Errors 20 | . . . . . . . 10 4 6 Energy Discharges 19 | . . . . . . 1 9 6 3 Parts Rejected 6 | . . . . . . . 4 . 2 Data Loss (minor) 25 | . . . . . . . 13 5 7 Data Loss (major) 7 | . . . . . . . 3 1 3 Misfires 10 | . . . . . . 1 5 2 2 Alerts 6 | . . . . . . . 3 1 2 Misdirections 4 | . . . . . . . . . 4 Weapon Failures 15 | . . . . . . . 13 . 2 Overload Shots . | . . . . . . . . . . Overflow Damage 181 | . 11 . . . . 44 126 . . Projectiles 133 | . 11 . . . . 39 83 . . Explosions 48 | . . . . . . 5 43 . . Melee . | . . . . . . . . . . Knockbacks 87 | . . . . . . 59 28 . . Impact 1 | . . . . . . 1 . . . Kinetic 76 | . . . . . . 51 25 . . Secondary 10 | . . . . . . 7 3 . . Self-Inflicted Damage 612 | . . . 44 . . 15 553 . . Shots 17 | . . . 2 . . 1 14 . . Rammed 6 | . . . . . . 5 1 . . Targets Rammed 7 | . . . . . . 5 2 . . Kicked 1 | . . . . . . . 1 . . Crushed . | . . . . . . . . . . Highest Temperature 426 | 27 420 320 15 75 . 293 426 346 247 Average Temperature 118 | 14 115 160 9 42 . 102 142 124 86 Received Heat Transfer 2804 | . 6 120 87 . . 857 1530 36 168 Effects 10 | . 1 . . . . 1 8 . . Shutdowns 2 | . . . . . . . 2 . . Energy Bleed 2 | . 1 . . . . . 1 . . Interference 4 | . . . . . . 1 3 . . Matter Decay 1 | . . . . . . . 1 . . Short Circuit 1 | . . . . . . . 1 . . Siege Activations . | . . . . . . . . . . Martial Activations 1 | . . . . . . 1 . . . Total Turns 29 | . . . . . . 29 . . . Longest Duration 29 | . . . . . . 29 . . . Shielding Activations . | . . . . . . . . . . Robots Disrupted 1 | . . . . . . . 1 . . Combat Hostiles . | . . . . . . . . . . Robots Corrupted 2 | . . . . . . . 2 . . Combat Hostiles 2 | . . . . . . . 2 . . Parts Fried 6 | . . . . . . . 6 . . Impact Corruptions . | . . . . . . . . . . Robots Melted 3 | . 1 . . . . 1 1 . . Combat Hostiles 3 | . 1 . . . . 1 1 . . Parts Melted 20 | . 2 4 . . . 5 6 1 2 Heat Transferred 10360 | 111 1369 555 407 37 . 3954 3483 259 185 Parts Sabotaged . | . . . . . . . . . . Parts Stolen . | . . . . . . . . . . Parts Stripped . | . . . . . . . . . . Power Chain Reactions 13 | . . . . . . 2 11 . . Alert | -11 -10 -10 -10 -9 -9 -6 -5 -5 -5 ------- Run | Yrd Mat Min Sub Rec Scr Fac Fac Upp Upp Maximum Alert Level 5 | . 1 . . . . 2 5 . . Low Security (%) 53 | 100 99 100 . 100 . 67 . . . Level 1 9 | . . . . . . 28 4 . . Level 2 17 | . . . . . . 4 43 . . Level 3 6 | . . . . . . . 18 . . Level 4 9 | . . . . . . . 25 . . Level 5 3 | . . . . . . . 8 . . High Security . | . . . . . . . . . . Max Security . | . . . . . . . . . . Peak Influence 1832 | 10 201 113 . 155 . 592 1832 . . Initial 240 | . . 48 . 127 . . 240 . . Average 371 | 1 72 92 . 23 . 139 850 . . Influence Increases 5256 | 10 486 115 402 91 . 1299 2513 40 300 Destroy 0b10 Robot/C 2860 | . 340 80 240 60 . 820 1200 40 80 Destroy 0b10 Robot/NC 165 | 10 25 . . . . 65 65 . . Destroy Leader 506 | . 68 20 20 . . 154 234 . 10 Allied During Kill 135 | . . . 97 22 . 16 . . . Successful Hack 88 | . 22 . . 8 . 18 40 . . Select Force Hacks 20 | . . . . . . 20 . . . Disable Machine 270 | . 15 15 . . . 30 210 . . Anti-Garrison Action 200 | . . . . . . . 200 . . Destroy Structure 502 | . 1 . . 1 . 56 444 . . Lose Combat Pursuer 510 | . 15 . 45 . . 120 120 . 210 Influence Decreases 4825 | 10 360 178 199 357 . 809 1171 1047 694 Entered New Map 1338 | . . 78 34 139 . . 250 679 158 Time Decay 2741 | 10 360 80 105 202 . 539 691 368 386 Lost Part 610 | . . 20 . . . 210 230 . 150 Lost Ally 136 | . . . 60 16 . 60 . . . Squads Dispatched 35 | . 2 . . . . 10 22 . 1 Investigation 10 | . 1 . . . . 3 6 . . Extermination 8 | . . . . . . 3 5 . . Reinforcement 10 | . 1 . . . . 4 5 . . Assault 7 | . . . . . . . 6 . 1 Garrison . | . . . . . . . . . . Intercept . | . . . . . . . . . . Searches Triggered . | . . . . . . . . . . Construction Impeded 3 | . . . . . . 1 2 . . Haulers Reinforced 4 | . . . . . . 3 1 . . Active Scanning Responses . | . . . . . . . . . . Cargo Convoy Interrupts . | . . . . . . . . . . Stealth | -11 -10 -10 -10 -9 -9 -6 -5 -5 -5 --------- Run | Yrd Mat Min Sub Rec Scr Fac Fac Upp Upp Distress Signals 7 | . 1 . . . . 6 . . . Communications Jammed . | . . . . . . . . . . Distress Signals . | . . . . . . . . . . Times Spotted 223 | . 20 4 21 1 . 68 87 2 20 Peak Tracking Total 15 | . 4 2 6 1 . 15 7 2 14 Tactical Retreats 22 | . 1 . 1 . . 7 5 . 8 Traps | -11 -10 -10 -10 -9 -9 -6 -5 -5 -5 ------- Run | Yrd Mat Min Sub Rec Scr Fac Fac Upp Upp Traps Triggered 7 | . 1 . 1 . . 2 3 . . Indirectly . | . . . . . . . . . . Trap Hack Attempts . | . . . . . . . . . . Triggered . | . . . . . . . . . . Disarmed . | . . . . . . . . . . Reprogrammed . | . . . . . . . . . . Reused . | . . . . . . . . . . Traps Extracted . | . . . . . . . . . . Installed . | . . . . . . . . . . Triggered . | . . . . . . . . . . Machines | -11 -10 -10 -10 -9 -9 -6 -5 -5 -5 ---------- Run | Yrd Mat Min Sub Rec Scr Fac Fac Upp Upp Machines Disabled 23 | . 1 1 5 . . 2 14 . . Max in Single Turn 5 | . 1 1 3 . . 1 5 . . Garrison Access 1 | . . . . . . . 1 . . Machines Repaired . | . . . . . . . . . . Machines Dismantled . | . . . . . . . . . . Machines Sabotaged . | . . . . . . . . . . Overloaded Fab Kills . | . . . . . . . . . . Hacking | -11 -10 -10 -10 -9 -9 -6 -5 -5 -5 --------- Run | Yrd Mat Min Sub Rec Scr Fac Fac Upp Upp Machines Accessed 45 | . 8 . 1 8 7 9 12 . . Terminals 19 | . 5 . . 6 . 5 3 . . Fabricators 2 | . . . . . . 1 1 . . Repair Stations 4 | . 1 . . . . 2 1 . . Recycling Units 9 | . 2 . . 2 . 1 4 . . Scanalyzers 1 | . . . . . . . 1 . . Garrison Access 2 | . . . . . . . 2 . . Total Hacks 130 | . 21 . 9 22 18 33 27 . . Successful 78 | . 12 . 9 7 18 20 12 . . Failed 50 | . 8 . . 14 . 13 15 . . Catastrophic 13 | . 3 . . 3 . 4 3 . . Database Lockouts 2 | . 1 . . 1 . . . . . Manual 44 | . 3 . . 8 . 18 15 . . Terminals 53 | . 15 . . 15 . 16 7 . . Fabricators 6 | . . . . . . 2 4 . . Repair Stations 17 | . 3 . . . . 13 1 . . Recycling Units 20 | . 3 . . 7 . 2 8 . . Scanalyzers 2 | . . . . . . . 2 . . Garrison Access 5 | . . . . . . . 5 . . Terminal Hacks 44 | . 8 . 9 5 18 3 1 . . Record 26 | . . . 8 . 17 1 . . . Robot Schematic 1 | . . . . 1 . . . . . Robot Analysis 2 | . 1 . . . . 1 . . . Prototype ID Bank 2 | . 2 . . . . . . . . Level Access Points 1 | . . . . 1 . . . . . Terminal Index 1 | . . . . . . 1 . . . Alert Level 1 | . 1 . . . . . . . . Locate Traps 1 | . 1 . . . . . . . . Hauler Manifests 3 | . 2 . . 1 . . . . . Zone Layout 3 | . 1 . . 2 . . . . . Patrol Navigation 1 | . . . . . . . 1 . . Proto ID Catalog 2 | . . . 1 . 1 . . . . Fabricator Hacks 2 | . . . . . . 1 1 . . Network Status 1 | . . . . . . 1 . . . Load Schematic 1 | . . . . . . . 1 . . Repair Station Hacks 13 | . 2 . . . . 10 1 . . Scan Component 7 | . 1 . . . . 6 . . . Repair 5 | . 1 . . . . 4 . . . Refit 1 | . . . . . . . 1 . . Recycling Unit Hacks 6 | . 2 . . 2 . . 2 . . Process 1 | . . . . . . . 1 . . Report Inventory 4 | . 2 . . 2 . . . . . Retrieve Matter 1 | . . . . . . . 1 . . Scanalyzer 2 | . . . . . . . 2 . . Insert Component 1 | . . . . . . . 1 . . Analyze 1 | . . . . . . . 1 . . Garrison Access Hacks . | . . . . . . . . . . Unauthorized Hacks 11 | . . . . . . 6 5 . . Terminals 7 | . . . . . . 5 2 . . Botnet 7 | . . . . . . 5 2 . . Fabricators 1 | . . . . . . 1 . . . Download 1 | . . . . . . 1 . . . Repair Stations . | . . . . . . . . . . Recycling Units 2 | . . . . . . . 2 . . Fedlink 2 | . . . . . . . 2 . . Scanalyzers . | . . . . . . . . . . Garrison Access 1 | . . . . . . . 1 . . Jam 1 | . . . . . . . 1 . . Data Cores Recovered . | . . . . . . . . . . Used . | . . . . . . . . . . Hacking Detections 32 | . 6 . . 7 . 9 10 . . Full Trace Events 6 | . . . . 1 . 2 3 . . Feedback Events . | . . . . . . . . . . Feedback Blocked . | . . . . . . . . . . Robot Schematics Acquired 1 | . . . . 1 . . . . . Robots Built . | . . . . . . . . . . Authchips . | . . . . . . . . . . Time . | . . . . . . . . . . Total Robot Build Rating . | . . . . . . . . . . Part Schematics Acquired 2 | . . . . . . 1 1 . . Parts Built . | . . . . . . . . . . Authchips . | . . . . . . . . . . Time . | . . . . . . . . . . Total Part Build Rating . | . . . . . . . . . . Parts Repaired 5 | . 1 . . . . 4 . . . Time 274 | . 51 . . . . 223 . . . Parts Recycled . | . . . . . . . . . . Recycled Matter 311 | . . . . . . . 311 . . Retrieved Matter 358 | . . . . . . . 358 . . Retrieved Components . | . . . . . . . . . . Parts Scanalyzed 1 | . . . . . . . 1 . . Part Schematics Acquired 1 | . . . . . . . 1 . . Parts Damaged . | . . . . . . . . . . Bothacking | -11 -10 -10 -10 -9 -9 -6 -5 -5 -5 ------------ Run | Yrd Mat Min Sub Rec Scr Fac Fac Upp Upp Used RIF Installer . | . . . . . . . . . . Robots Hacked . | . . . . . . . . . . Non-combat . | . . . . . . . . . . Combat . | . . . . . . . . . . Robot Hacks Applied . | . . . . . . . . . . Relay Couplers Released 3 | . . . . . . . 3 . . Programmers 3 | . . . . . . . 3 . . Fabnet Peak Effective % . | . . . . . . . . . . Robots Rewired . | . . . . . . . . . . Allies Hacked . | . . . . . . . . . . Hacks Repelled . | . . . . . . . . . . Allies | -11 -10 -10 -10 -9 -9 -6 -5 -5 -5 -------- Run | Yrd Mat Min Sub Rec Scr Fac Fac Upp Upp Total Allies 13 | . . . 13 . . . . . . Largest Group 9 | . . . 9 7 6 6 . . . Highest-Rated Group 171 | . . . 171 133 114 114 . . . Highest-Rated Ally 19 | . . . 19 19 19 19 . . . Total Orders 27 | . . . . . 18 2 6 . 1 STAY 2 | . . . . . 2 . . . . ROAM 1 | . . . . . 1 . . . . FOLLOW 2 | . . . . . 2 . . . . EXPLORE 3 | . . . . . 3 . . . . RETURN 19 | . . . . . 10 2 6 . 1 Ally Attacks 57 | . . . 29 10 . 18 . . . Total Damage 688 | . . . 374 140 . 174 . . . Kills 8 | . . . 6 2 . . . . . Allies Corrupted . | . . . . . . . . . . Allies Melted . | . . . . . . . . . . Intel | -11 -10 -10 -10 -9 -9 -6 -5 -5 -5 ------- Run | Yrd Mat Min Sub Rec Scr Fac Fac Upp Upp Active Infowar (turns) 7543 | 71 1044 . 15 620 3033 1864 896 . . Sensors 137 | . 1 . 15 . . 121 . . . Seismic 7527 | 71 1043 . . 620 3033 1864 896 . . Robot Analysis Total 2 | . 1 . . . . 1 . . . Derelict Logs Recovered 9 | . . . 1 . 4 . . 2 2 Drone Launches 49 | . . . . . 26 6 14 . 3 Drone Recoveries 49 | . . . . . 26 6 14 . 3 Exploration | -11 -10 -10 -10 -9 -9 -6 -5 -5 -5 ------------- Run | Yrd Mat Min Sub Rec Scr Fac Fac Upp Upp Turns Passed 17745 | 109 1281 161 3601 1166 4813 2037 2819 857 901 Spaces Moved 7611 | 55 710 57 1740 649 1961 677 1039 337 386 Core 57 | 11 . . . . . 9 37 . . Treads 1754 | 44 218 . 465 . 781 123 80 . 43 Legs 1183 | . . . . . . . 503 337 343 Wheels 4475 | . 492 57 1275 649 1180 545 277 . . Hover 142 | . . . . . . . 142 . . Flight . | . . . . . . . . . . Fastest Speed 40 | 50 145 145 145 175 150 50 40 250 140 Average Speed 200 | 141 151 145 188 175 236 196 185 250 218 Slowest Speed 392 | 160 175 145 240 175 320 392 330 250 250 Overloaded Moves . | . . . . . . . . . . Propulsion Burnouts . | . . . . . . . . . . Robots Hopped . | . . . . . . . . . . Potential Cave-ins 6 | . . . . . . . 4 . 2 Cave-ins Triggered 2 | . . . . . . . . . 2 Exploration Rate (%) 57 | 4 94 10 95 99 91 15 34 58 71 Regions Visited 9 Branch Regions 6 Pre-discovered Areas 6 | . . . 2 . 3 . 1 . . Known Exits Taken . | . . . . . . . . . . Unknown Exits Taken 9 | 1 1 1 1 1 1 1 1 1 . Scrap Searched 13 | . . . 7 . 3 . . . 3 Spaces Dug 109 | . . . 47 . . 16 40 . 6 Terrain Destroyed 403 | . . . 47 . . 80 263 4 9 Melee . | . . . . . . . . . . Projectile 124 | . . . . . . 2 109 4 9 AOE 279 | . . . 47 . . 78 154 . . Terrain Rammed . | . . . . . . . . . . Walls Destroyed . | . . . . . . . . . . Machines Disabled . | . . . . . . . . . . Actions | -11 -10 -10 -10 -9 -9 -6 -5 -5 -5 --------- Run | Yrd Mat Min Sub Rec Scr Fac Fac Upp Upp Total 9216 | 78 829 108 1978 681 2139 1123 1515 345 420 Wait 741 | 7 43 33 130 14 151 220 136 3 4 Move 7602 | 54 709 56 1739 648 1960 676 1038 336 386 Hop . | . . . . . . . . . . Pick Up 99 | 7 14 2 22 8 7 16 18 1 4 Fast Attach 69 | 4 2 . . . 5 13 40 1 4 Attach 40 | 3 1 1 3 . 2 14 11 1 4 Detach 5 | . . . . . . 1 4 . . Swap 84 | . 9 1 14 2 4 23 31 . . Drop 67 | . 8 . 11 8 10 11 17 . 2 Fire 477 | 3 43 15 59 1 . 136 202 3 15 Melee . | . . . . . . . . . . Ram 3 | . . . . . . 1 1 . 1 Kick 1 | . . . . . . . 1 . . Crush 4 | . . . . . . 4 . . . Escape Stasis 24 | . . . . . . 8 16 . . Rewire . | . . . . . . . . . . Trap . | . . . . . . . . . . Miscellaneous . | . . . . . . . . . . Route ------- -11/Scrapyard -10/Materials (discovered 4 exits: [*Mat x3] / [*Min]) -10/Mines -10/Subcaves (discovered 3 exits: [*Mat x2] / *Rec) -9/Recycling (discovered 2 exits: *Fac / *Scr) -9/Scraptown (discovered 2 exits: *Fac x2) -6/Factory (discovered 2 exits: *Fac / [*Low]) -5/Factory -5/Upper Caves -5/Upper Caves History --------- Turn | Location | Event 35 | -11/Scrapyard | Discovered new exit (range 16) 110 | -11/Scrapyard | Entered Materials 111 | -10/Materials | Met a group of wandering Federalists 308 | -10/Materials | Central database locked down 314 | -10/Materials | Build established: Mutant 629 | -10/Materials | Discovered new exit (range 16) 741 | -10/Materials | Discovered new exit (range 14) 893 | -10/Materials | Discovered new exit (range 16) 920 | -10/Materials | Repaired Adv. Beam Cannon? 1120 | -10/Materials | Discovered new exit (range 16) 1391 | -10/Materials | Entered Mines 1549 | -10/Mines | Discovered new exit (range 3) 1552 | -10/Mines | Entered Subcaves 1665 | -10/Subcaves | Shifting Twisted Machinery released Sub. Shrapnel Launcher 1665 | -10/Subcaves | Shifting Twisted Machinery released Mak. Light Armor Plating 1740 | -10/Subcaves | Shifting Twisted Machinery released Sub. Machine Gun 1876 | -10/Subcaves | Shifting Twisted Machinery released Mak. Kinetic Plating 2044 | -10/Subcaves | Visited triangular shrine 2060 | -10/Subcaves | Found Prototype Device 2061 | -10/Subcaves | Identified V3-11A's Pendant 2066 | -10/Subcaves | Befriended Subdweller 2286 | -10/Subcaves | A swath of the cavern ceiling suddenly collapsed 2411 | -10/Subcaves | Befriended Subdweller 2446 | -10/Subcaves | Befriended Subdweller 2736 | -10/Subcaves | Befriended Subdweller 2736 | -10/Subcaves | Befriended Subdweller 2976 | -10/Subcaves | Befriended Subdweller 3017 | -10/Subcaves | A swath of the cavern ceiling suddenly collapsed 3064 | -10/Subcaves | Learned location of Zion (-6) 3064 | -10/Subcaves | Met a Zionite searching for "candidates" 3217 | -10/Subcaves | Disturbed a concealed Subdweller 3217 | -10/Subcaves | Befriended Subdweller 3337 | -10/Subcaves | Befriended Subdweller 3483 | -10/Subcaves | Shifting Twisted Machinery released Lgt. Humpback 3504 | -10/Subcaves | Shifting Twisted Machinery released Sub. Shrapnel Launcher 3720 | -10/Subcaves | Visited 4L-MR0's lab 3735 | -10/Subcaves | Found Meta Core 4058 | -10/Subcaves | Discovered new exit (range 8) 4072 | -10/Subcaves | Befriended Subdweller 4072 | -10/Subcaves | Befriended Subdweller 4184 | -10/Subcaves | Curiously followed by a Cobbler waking with a query about "LVR3C" 4191 | -10/Subcaves | Discovered new exit (range 11) 4195 | -10/Subcaves | Core integrity fell below 50% 4265 | -10/Subcaves | Lost 4 allies 4291 | -10/Subcaves | Discovered new exit (range 7) 4332 | -10/Subcaves | Befriended Subdweller 4332 | -10/Subcaves | Befriended Subdweller 4814 | -10/Subcaves | Disturbed a concealed Subdweller 4878 | -10/Subcaves | Ambushed by angry Subdweller bent on revenge 4912 | -10/Subcaves | Befriended Subdweller 5153 | -10/Subcaves | Entered Recycling 5153 | -9/Recycling | Accompanied by 7 allies 5473 | -9/Recycling | Discovered new exit (range 16) 5716 | -9/Recycling | Identified exit to Factory 6002 | -9/Recycling | Build established: Scavenger-Mutant 6275 | -9/Recycling | Scanned before Scraplab entrance 6314 | -9/Recycling | Discovered new exit (range 2) 6319 | -9/Recycling | Entered Scraptown 6319 | -9/Scraptown | Accompanied by 6 allies 6648 | -9/Scraptown | Scanned Subdweller tech in exchange for log data 6653 | -9/Scraptown | Learned Factory security intel 6655 | -9/Scraptown | Learned Factory emergency access door positions 6656 | -9/Scraptown | Learned Research terminal intel 6674 | -9/Scraptown | Discovered new exit (range 13) 6784 | -9/Scraptown | Visited Cyclists 6824 | -9/Scraptown | Visited Awakened 7006 | -9/Scraptown | Visited Red Mages 7117 | -9/Scraptown | Visited UFD Registry 7148 | -9/Scraptown | Registered with UFD as "Biochaser" 7176 | -9/Scraptown | Visited Shadow of the Wyrm 7200 | -9/Scraptown | Visited Supply Room 7214 | -9/Scraptown | Visited SPCMW 7317 | -9/Scraptown | Visited Assassins FH 7660 | -9/Scraptown | Visited A0-MCA Data Center 7708 | -9/Scraptown | Visited Scrap Suit Storage 7772 | -9/Scraptown | Visited Junk Cannon Lab 7789 | -9/Scraptown | Found Prototype Special Weapon 7789 | -9/Scraptown | Identified Junk Cannon 7836 | -9/Scraptown | Build established: Mutant 8192 | -9/Scraptown | Delivered Scrap Shield to a Scientist 8360 | -9/Scraptown | Visited LU-1G1's Boring Crew 8450 | -9/Scraptown | Visited Infowarlord's Domain 8462 | -9/Scraptown | Found Exp. Signal Interpreter 8491 | -9/Scraptown | Visited Derelict Rescue Squad 8505 | -9/Scraptown | Found DRS Beacon 8541 | -9/Scraptown | Visited Cartography Club 8804 | -9/Scraptown | Visited Observation Area 8933 | -9/Scraptown | Visited Junk Repository 9016 | -9/Scraptown | Visited Science Guys 9333 | -9/Scraptown | Entered Cyclist Reading Room 9687 | -9/Scraptown | Discovered new exit (range 12) 10932 | -9/Scraptown | Met Optimus 10932 | -9/Scraptown | Accepted into 0bPrime 11132 | -9/Scraptown | Entered Factory 11132 | -6/Factory | Accompanied by 6 allies 11132 | -6/Factory | Evolved 8 slots: Power x1, Propulsion x1, Utility x5, Weapon x1 11191 | -6/Factory | Discovered new exit (range 18) 11295 | -6/Factory | Lost 6 allies 11457 | -6/Factory | Build established: Scavenger-Tank 11680 | -6/Factory | Repaired Lgt. Treads? 11805 | -6/Factory | Repaired Broken Cold Fusion Reactor? 11811 | -6/Factory | Lost 3 parts (3w) 12185 | -6/Factory | Discovered new exit (range 3) 12618 | -6/Factory | Build established: Scavenger-Mutant 12689 | -6/Factory | Repaired Broken Adv. Treads 12780 | -6/Factory | Repaired Broken Sub. Machine Gun 13093 | -6/Factory | Build established: Scavenger-Tank 13165 | -6/Factory | Core integrity fell below 50% 13169 | -6/Factory | Entered another Factory area 13169 | -5/Factory | Evolved 2 slots: Utility x2 13197 | -5/Factory | Lost 15 parts (2p4n6u3w) 13542 | -5/Factory | Build established: Gunner 13632 | -5/Factory | Destroyed 7 combat bots 13927 | -5/Factory | Build established: Scavenger-Gunner 14069 | -5/Factory | First assault squad dispatched 14177 | -5/Factory | Lost 6 parts (1p4u1w) 14257 | -5/Factory | Lost 6 parts (1p1n3u1w) 14367 | -5/Factory | Spotted B-75 Beast 14434 | -5/Factory | System corruption reached 10% 14575 | -5/Factory | Build established: Gunner 14881 | -5/Factory | Core integrity fell below 50% 14923 | -5/Factory | Build established: Scavenger-Gunner 15031 | -5/Factory | Discovered new exit (range 10) 15329 | -5/Factory | Build established: Tank 15461 | -5/Factory | Loaded intel: 8 recycling unit locations 15826 | -5/Factory | System corruption reached 30% 15903 | -5/Factory | Learned location of Protoforge (-2) 15988 | -5/Factory | Entered Upper Caves 15990 | -5/Upper Caves | UFD Scientist delivered a prototype 15993 | -5/Upper Caves | Found Prototype Protection 15993 | -5/Upper Caves | Identified Enh. Scrap Shield 16017 | -5/Upper Caves | Learned 8 Factory zone layouts 16560 | -5/Upper Caves | Learned Factory security intel 16813 | -5/Upper Caves | Discovered new exit (range 8) 16845 | -5/Upper Caves | Entered another Upper Caves area 17476 | -5/Upper Caves | Attracted the attention of an 0b10 outpost 17528 | -5/Upper Caves | Core integrity fell below 20% 17535 | -5/Upper Caves | Attached Meta Core, gained temporary slots: Propulsion, Utility, Weapon 17542 | -5/Upper Caves | Lost 4 parts (1p2u1w) 17553 | -5/Upper Caves | Crushed by falling debris 17559 | -5/Upper Caves | Crushed by falling debris 17590 | -5/Upper Caves | Lost 6 parts (5u1w) 17652 | -5/Upper Caves | Attracted the attention of an 0b10 checkpoint 17688 | -5/Upper Caves | Learned Factory trap positions 17690 | -5/Upper Caves | Learned Factory security intel 17732 | -5/Upper Caves | Lost 3 parts (1n1u1w) 17746 | -5/Upper Caves | Destroyed by G-50 Soldier with Heavy Laser Last Messages --------------- 17670_ Penetrated by Slug. 17670_ Med. Armored Exoskeleton destroyed. 17673_ Acquired 10 matter. 17673_ Penetrated by Slug. 17676_ Y-64 Sentinel misfires. 17679_ Matter Filter destroyed. 17679_ Penetrated by Slug. 17682_ Y-64 Sentinel misfires. 17684_ System corrupted: Matter fused (-5). 17688_ Acquired derelict log, extracted data. Data stored: Factory trap records. 17690_ Acquired derelict log, extracted data. Data stored: Factory security intel. 17699_ System corrupted: Component data lost. 17701_ Hvy. Ion Cannon destroyed. 17710_ M-28 Smith repairs L-41 Fighter. 17717_ System corrupted: Arm. Medium Treads rejected. 17717_ Acquired Arm. Medium Treads. 17733_ System corrupted: Component data lost. Map ----- +----------------------------------------------------+ | ???????????????????????????## ?# ????????# | | ??????????????????????????## ## ????????# | | ??????????????????????????# ????????### | | ??????????????????????????# #?????????## | | ??????????????????????????# ##?????????## | | ???????????????????????????? #??????????# | | ????#######???############??? ##????????## | | ##### ###?# # #????? #######??# | | ## #### # #??????# ## #??# | | ## ^ # # ##????## ##?# | | " #?# ## ## ^ # ###### #?# | | #" ### # ### #?# | | "# ## # #! #?## | | ?# #### #% ### ### ##?# | | ?# #"# ##?### # ##?###?## ### | | ?# ### #???##########???????## ## | | ##*= ##????????????????????###### #### | | % ####???#??????????????????## #### | | =% ## #?#?????????????######?## ## ## | | [ %### ####???????#???## ### ## | | [ ##?# "" #########???# ## ### | | #!##?# """" #????# #?# ###### | | #%#### """ ##### #???## #### ##### | | # ##"# " #???# #??## g # | | # ##" " % ##?#?# #### g g | | ## """ ###????# @ l ######### | | ##### % " #??? ?# l ##???????## # | | #???# %! ##? ?####### ##?????????## # # | | ##??###"######## ????????## #???????????# # | | ##?## ##???????? ??#???## #???????????# ## | | #?#####?#????????????## #?????????? ##? | | ### ##?#?????#??????## #?????????### ##?? | | #" ##??????????# ## #???????????# #??? | | ####?##??????#?# ##?????????## #### | | #?????????????# ## #????????## # | | #?????#?#???# #?## ##?????### # # | | #?????#???? ???## ####### # | | ### #?#??#???#???????## ## # # | | ??## #?????????#??????##?# #### | | ???## #???????#??#???????# #######??# | | ?#??? #?????????????????# #????????# | | ??#??# #?#?????##???????## ????????## | | ?#?##?### ##??#??????????????##### #????????## | | ?????#???###???#??????????????????####?????????### | | ?????????????????????????????????????????????????? | | ?????????????????????????????????????????????????? | | ?????????????????????????????????????????????????? | | ?????????????????????????????????????????????????? | | ?????????????????????????????????????????????????? | | ?????????????????????????????????????????????????? | +----------------------------------------------------+ Best States ------------- Heat Dissipation 90 Coolant Potential 50 Energy Generation 37 Energy Capacity 800 Matter Stores 457 Matter Capacity 900 Sight Range 16 Robot Scan Range 14 Terrain Scan Density 10 Additional Mass Support 12 Armor Coverage 800 Resistance: KI 25 Resistance: TH 25 Resistance: EM 25 Utility Shielding 66 Weapon Cycling 20 Evasion (%) 57 Target Analysis 7 Recoil Reduction 3 Matter Filtering 30 Kinecelleration 30 Offensive Hacking 14 Defensive Hacking 10 Authchip Count 7 Item Schematics ----------------- Imp. Fusion Compressor | -6/Factory | Downloaded Arm. Medium Treads | -5/Factory | Scanalyzed Robot Schematics ------------------ M-13 Machinist | -9/Recycling | Hacked Fabricated ------------ Nothing Repaired ---------- Adv. Beam Cannon | 38% | -10/Materials Lgt. Treads | 26% | -6/Factory Cold Fusion Reactor | 59% | -6/Factory | Broken Adv. Treads | 38% | -6/Factory | Broken Sub. Machine Gun | 62% | -6/Factory | Broken Alien Tech Used ----------------- None Achievements -------------- Quantum Hacking Streaker Challenges ------------ None Game ------ Seed AluminumThrusterFrame Manual? 0 Play Time 07:30:00 Cumulative 267.6 hours Start 2025.06.15 @ 10:41:02 End 2025.06.28 @ 16:52:16 Sessions 13 Manual Loads 0 Difficulty Rogue Special Mode None Game No. 11 Rogue 7 Adventurer 4 Explorer 0 Win Type - Total 0 Types 0/0/0/0/0/0/0/0/0/0 Lore% 41 Gallery% 41 Achievement% 43 Wizard Run 0 Options --------- Layout 1 ASCII 0 Keyboard 0 Movement Mouse Keybinds 0 Fullscreen 1 Font 24/Smallcaps Map View 50x35 Zoom Use 0% Tactical HUD 1 Map Filters NONE Filters NONE Steam 1 RUN: 4b62e5e7-ab32-443c-99f9-42e3e2d2d772